bitfinex/quotes_BTCUSD_20250808
["timestamp","ask_amount","ask_price","bid_price","bid_amount"]
[1754660916150,0.17291095,117020.0,117010.0,0.02943]
[1754660916596,0.17407095,117020.0,117010.0,0.02943]
[1754660917060,0.34019095,117020.0,117010.0,0.00213]
[1754660917280,0.17092556,117010.0,117000.0,0.1164407]
[1754660917496,0.17191095,117020.0,117010.0,0.02943]
[1754660917714,0.17291095,117020.0,117010.0,0.11629211]
[1754660918381,0.17191095,117020.0,117010.0,0.11629211]
[1754660918569,0.17407095,117020.0,117010.0,0.11320211]
[1754660918792,0.17092556,117010.0,117000.0,0.00014184]
[1754660919005,0.19971556,117010.0,117000.0,0.00014184]
[1754660920757,0.36543556,117010.0,117000.0,0.00014184]
[1754660921190,0.70543556,117010.0,117000.0,0.00014184]
[1754660922047,0.70543556,117010.0,117000.0,0.00114184]
[1754660922486,0.70543556,117010.0,117000.0,0.00014184]
[1754660922910,0.70643556,117010.0,117000.0,0.00014184]
[1754660923580,0.70943556,117010.0,117000.0,0.00014184]
[1754660925115,0.71742345,117010.0,117000.0,0.00014184]
[1754660925317,0.71742334,117010.0,117000.0,0.00014184]
[1754660925563,0.70943556,117010.0,117000.0,0.00014184]
[1754660925751,0.71742325,117010.0,117000.0,0.00014184]
[1754660926174,0.71594325,117010.0,117000.0,0.00014184]
[1754660927123,0.55170325,117010.0,117000.0,0.00014184]
[1754660927355,0.71582681,117010.0,117000.0,0.00014184]
[1754660928019,0.55170681,117010.0,117000.0,0.00014184]
[1754660928278,0.71558681,117010.0,117000.0,0.00014184]
[1754660930818,0.52291681,117010.0,117000.0,0.02648184]
[1754660931045,0.17492556,117010.0,117000.0,0.02957184]
[1754660931254,0.33828556,117010.0,117000.0,0.02957184]
[1754660931710,0.33828556,117010.0,117000.0,0.11643395]
[1754660931928,0.33728556,117010.0,117000.0,0.11643395]
[1754660932125,0.33728556,117010.0,117000.0,0.11743395]
[1754660934548,0.33428556,117010.0,117000.0,0.11743395]
[1754660936345,0.17092556,117010.0,117000.0,0.11743395]
[1754660936596,0.33424556,117010.0,117000.0,0.11743395]
[1754660938134,0.17092556,117010.0,117000.0,0.11743395]
[1754660938342,0.33424556,117010.0,117000.0,0.11743395]
[1754660938579,0.17092556,117010.0,117000.0,0.11743395]
[1754660941345,0.17299556,117010.0,117000.0,0.11434395]
[1754660941546,0.19556556,117010.0,117000.0,0.08800395]
[1754660942079,0.19876556,117010.0,117000.0,0.00114184]
[1754660942275,0.35860556,117010.0,117000.0,0.00114184]
[1754660942488,0.35860556,117010.0,117000.0,0.00322184]
[1754660942489,0.33603556,117010.0,117000.0,0.00322184]
[1754660942722,0.35860556,117010.0,117000.0,0.00322184]
[1754660942942,0.35860556,117010.0,117000.0,0.00114184]
[1754660943614,0.17299556,117010.0,117000.0,0.00114184]
[1754660943837,0.33615556,117010.0,117000.0,0.02743184]
[1754660945311,0.33615556,117010.0,117000.0,0.03048184]
[1754660945806,0.33615556,117010.0,117000.0,0.02743184]
[1754660945807,0.33619556,117010.0,117000.0,0.02743184]
[1754660946538,0.35876556,117010.0,117000.0,0.02743184]
[1754660946755,0.35876556,117010.0,117000.0,0.00322184]
[1754660948956,0.35876556,117010.0,117000.0,0.02743184]
[1754660949177,0.33619556,117010.0,117000.0,0.02743184]
[1754660949628,0.33619556,117010.0,117000.0,0.03048184]
[1754660949856,0.17092556,117010.0,117000.0,0.11734395]
[1754660950073,0.17092556,117010.0,117000.0,0.28828412]
[1754660950295,0.17092556,117010.0,117000.0,0.11734395]
[1754660950748,0.17092556,117010.0,117000.0,0.28828412]
[1754660950969,0.17092556,117010.0,117000.0,0.38674395]
[1754660951594,0.17299556,117010.0,117000.0,0.38369395]
[1754660952034,0.17092556,117010.0,117000.0,0.38674395]
[1754660952866,0.17092556,117010.0,117000.0,0.41242995]
[1754660954212,0.19556556,117010.0,117000.0,0.38308995]
[1754660954429,0.17299556,117010.0,117000.0,0.38516995]
[1754660954630,0.17092556,117010.0,117000.0,0.41242995]
[1754660956409,0.17092556,117010.0,117000.0,0.38674395]
[1754660956650,0.17092556,117010.0,117000.0,0.41242995]
[1754660957040,0.17206556,117010.0,117000.0,0.40937995]
[1754660957276,0.17092556,117010.0,117000.0,0.41242995]
[1754660957513,0.17092556,117010.0,117000.0,0.38674395]
[1754660958831,0.17092556,117010.0,117000.0,0.94272008]
[1754660959051,0.17091095,117020.0,117000.0,0.94272008]
[1754660959258,0.17091095,117020.0,117010.0,0.11412211]
[1754660959459,0.17091095,117020.0,117010.0,0.11620211]
[1754660959907,0.17091095,117020.0,117010.0,0.60969463]
[1754660960197,0.17091095,117020.0,117010.0,0.11620211]
[1754660960429,0.17091095,117020.0,117010.0,0.11833867]
[1754660960929,0.17298095,117020.0,117010.0,0.11833867]
[1754660961175,0.19645095,117020.0,117010.0,0.08686211]
[1754660961397,0.19946095,117020.0,117010.0,0.08686211]
[1754660961863,0.20046095,117020.0,117010.0,0.08686211]
[1754660962807,0.19745095,117020.0,117010.0,0.08686211]
[1754660964977,0.20046095,117020.0,117010.0,0.08686211]
[1754660967129,0.19745095,117020.0,117010.0,0.08686211]
[1754660969097,0.17191095,117020.0,117010.0,0.08686211]
[1754660969369,0.17191095,117020.0,117010.0,0.11389211]
[1754660969370,0.19746095,117020.0,117010.0,0.11389211]
[1754660969591,0.19746095,117020.0,117010.0,0.08686211]
[1754660970038,0.17399095,117020.0,117010.0,0.11389211]
[1754660970261,0.17191095,117020.0,117010.0,0.11797211]
[1754660970485,0.17191095,117020.0,117010.0,0.61146463]
[1754660970694,0.17191095,117020.0,117010.0,0.11797211]
[1754660972399,0.17091095,117020.0,117010.0,0.11797211]
[1754660975060,0.17222095,117020.0,117010.0,0.11797211]
[1754660975665,0.19569095,117020.0,117010.0,0.11489211]
[1754660976050,0.17091095,117020.0,117010.0,0.11797211]
[1754660976531,0.19569095,117020.0,117010.0,0.08786211]
[1754660976767,0.19569095,117020.0,117010.0,0.11489211]
[1754660976768,0.17222095,117020.0,117010.0,0.11489211]
[1754660976986,0.17091095,117020.0,117010.0,0.11797211]
[1754660977140,0.17222095,117020.0,117010.0,0.11489211]
[1754660977346,0.19569095,117020.0,117010.0,0.11489211]
[1754660977558,0.17222095,117020.0,117010.0,0.11489211]
[1754660977724,0.17091095,117020.0,117010.0,0.11797211]
[1754660978218,0.19569095,117020.0,117010.0,0.11797211]
[1754660978649,0.17091095,117020.0,117010.0,0.11797211]
[1754660979297,0.17091095,117020.0,117010.0,0.12010867]
[1754660979761,0.17091095,117020.0,117010.0,0.14579267]
[1754660979970,0.17091095,117020.0,117010.0,0.63714863]
[1754660980189,0.17091095,117020.0,117010.0,0.63501207]
[1754660980427,0.17091095,117020.0,117010.0,0.90441207]
[1754660981709,0.17091095,117020.0,117010.0,0.41305611]
[1754660981908,0.17091095,117020.0,117010.0,0.90441207]
[1754660982172,0.17091095,117020.0,117010.0,0.41305611]
[1754660983030,0.17091095,117020.0,117010.0,0.43839493]
[1754660983711,0.17299095,117020.0,117010.0,0.59935493]
[1754660984144,0.19646095,117020.0,117010.0,0.51822211]
[1754660984324,0.19947095,117020.0,117010.0,0.51822211]
[1754660985441,0.19646095,117020.0,117010.0,0.51822211]
[1754660985649,0.17299095,117020.0,117010.0,0.54525211]
[1754660986354,0.19646095,117020.0,117010.0,0.25089211]
[1754660986586,0.19646095,117020.0,117010.0,0.24882211]
[1754660986817,0.17299095,117020.0,117010.0,0.27585211]
[1754660987751,0.17299095,117020.0,117010.0,0.27893211]
[1754660988399,0.19646095,117020.0,117010.0,0.24882211]
[1754660988629,0.19947095,117020.0,117010.0,0.24882211]
[1754660988833,0.19646095,117020.0,117010.0,0.24882211]
[1754660990163,0.17091095,117020.0,117010.0,0.27893211]
[1754660990599,0.17299095,117020.0,117010.0,0.27585211]
[1754660990821,0.17299095,117020.0,117010.0,0.24806211]
[1754660990822,0.19646095,117020.0,117010.0,0.24806211]
[1754660991028,0.19947095,117020.0,117010.0,0.08786211]
[1754660996558,0.35935095,117020.0,117010.0,0.08786211]
[1754660999810,0.35634095,117020.0,117010.0,0.08786211]
[1754661001178,0.35948095,117020.0,117010.0,0.001]
[1754661001427,0.17950251,116990.0,116970.0,0.02569]
[1754661001644,0.33266939,116980.0,116970.0,0.08694291]
[1754661002143,0.35679939,116980.0,116970.0,0.08694291]
[1754661004122,0.35779939,116980.0,116970.0,0.08694291]
[1754661004550,0.36093939,116980.0,116970.0,0.08694291]
[1754661004767,0.36093939,116980.0,116970.0,8.08e-05]
[1754661005400,0.36943003,116980.0,116970.0,8.08e-05]
[1754661006819,0.37043003,116980.0,116970.0,8.08e-05]
[1754661011083,0.71043003,116980.0,116970.0,8.08e-05]
[1754661011936,0.17098401,116970.0,116960.0,0.0004]
[1754661012185,0.20027401,116970.0,116960.0,0.00044722]
[1754661012434,0.54027401,116970.0,116960.0,0.00044722]
[1754661012929,0.69971401,116970.0,116960.0,0.00044722]
[1754661013167,0.54027401,116970.0,116960.0,0.00044722]
[1754661013413,0.69967401,116970.0,116960.0,0.00044722]
[1754661014148,0.67360401,116970.0,116960.0,0.02595722]
[1754661014393,0.51500401,116970.0,116960.0,0.02892722]
[1754661014634,0.67460401,116970.0,116960.0,0.02892722]
[1754661015122,0.70187401,116970.0,116960.0,0.00044722]
[1754661016309,0.70984132,116970.0,116960.0,0.00044722]
[1754661017179,0.54710132,116970.0,116960.0,0.00044722]
[1754661017388,0.70666132,116970.0,116960.0,0.00044722]
[1754661017602,0.54710132,116970.0,116960.0,0.00044722]
[1754661017817,0.70666132,116970.0,116960.0,0.00044722]
[1754661018046,0.52297132,116970.0,116960.0,0.02595722]
[1754661018261,0.68245132,116970.0,116960.0,0.02892722]
[1754661018480,0.68043132,116970.0,116960.0,0.02892722]
[1754661019343,0.68245132,116970.0,116960.0,0.02892722]
[1754661020523,0.70658132,116970.0,116960.0,0.00044722]
[1754661020768,0.70972132,116970.0,116960.0,0.00044722]
[1754661021252,0.17099863,116960.0,116950.0,4e-05]
[1754661021501,0.18093594,116960.0,116950.0,0.00018187]
[1754661021739,0.20708594,116960.0,116950.0,0.00018187]
[1754661022763,0.20708594,116960.0,116950.0,1e-08]
[1754661022973,0.72087469,116960.0,116950.0,1e-08]
[1754661023450,0.65139707,116960.0,116950.0,1e-08]
[1754661023682,0.65239707,116960.0,116950.0,1e-08]
[1754661024131,0.65139707,116960.0,116950.0,1e-08]
[1754661024362,0.65737504,116960.0,116950.0,1e-08]
[1754661025522,0.65837504,116960.0,116950.0,1e-08]
[1754661025784,0.65837504,116960.0,116920.0,0.02805]
[1754661025785,0.17105713,116920.0,116900.0,0.00305]
[1754661026010,0.17105713,116920.0,116890.0,0.026111]
[1754661026011,0.17108639,116900.0,116890.0,0.026111]
[1754661026261,0.17305639,116900.0,116890.0,0.0004]
[1754661026484,0.20717953,116900.0,116890.0,0.00087322]
[1754661026939,0.36781953,116900.0,116890.0,0.00087322]
[1754661027155,0.36781953,116900.0,116890.0,0.00296322]
[1754661027391,0.36470953,116900.0,116890.0,0.00296322]
[1754661027609,0.37343928,116900.0,116890.0,0.00296322]
[1754661027793,0.20717953,116900.0,116890.0,0.00087322]
[1754661028045,0.20406953,116900.0,116890.0,0.00087322]
[1754661028231,0.33973953,116900.0,116890.0,0.03061322]
[1754661028474,0.3738318,116900.0,116890.0,0.00087322]
[1754661028938,0.2080718,116900.0,116890.0,0.00296322]
[1754661029149,0.3458318,116900.0,116890.0,0.02756322]
[1754661029620,0.3718418,116900.0,116890.0,0.00596322]
[1754661030109,0.36586953,116900.0,116890.0,0.00596322]
[1754661030312,0.36606953,116900.0,116890.0,0.00596322]
[1754661031036,0.70917953,116900.0,116890.0,1e-08]
[1754661031296,0.71515175,116900.0,116890.0,1e-08]
[1754661031546,0.17110103,116890.0,116880.0,1e-08]
[1754661031766,0.18701639,116890.0,116880.0,8.054e-05]
[1754661032003,0.21316639,116890.0,116880.0,8.054e-05]
[1754661032729,0.68011417,116890.0,116880.0,0.02982054]
[1754661032970,0.34007417,116890.0,116880.0,0.02982054]
[1754661033221,0.17907417,116890.0,116880.0,0.02982054]
[1754661033452,0.34115417,116890.0,116880.0,0.03182054]
[1754661034108,0.34115417,116890.0,116880.0,0.00417054]
[1754661035007,0.36419417,116890.0,116880.0,0.00417054]
[1754661035444,0.36616417,116890.0,116880.0,0.00417054]
[1754661035660,0.36927417,116890.0,116880.0,0.00208054]
[1754661036541,0.36925567,116890.0,116880.0,0.00208054]
[1754661037469,0.34097567,116890.0,116880.0,0.03182054]
[1754661038140,0.34097492,116890.0,116880.0,0.03182054]
[1754661038570,0.34093492,116890.0,116880.0,0.03182054]
[1754661038985,0.18005492,116890.0,116880.0,0.03182054]
[1754661039224,0.34077492,116890.0,116880.0,0.03182054]
[1754661040126,0.34081492,116890.0,116880.0,0.03182054]
[1754661040341,0.34065492,116890.0,116880.0,0.03182054]
[1754661040554,0.34065492,116890.0,116880.0,0.00417054]
[1754661040764,0.36369492,116890.0,116880.0,0.00417054]
[1754661041257,0.34065492,116890.0,116880.0,0.03182054]
[1754661041520,0.18005492,116890.0,116880.0,0.03182054]
[1754661041755,0.34057492,116890.0,116880.0,0.03182054]
[1754661042236,0.34045492,116890.0,116880.0,0.03182054]
[1754661042716,0.36546492,116890.0,116880.0,0.00208054]
[1754661042942,0.36857492,116890.0,116880.0,0.00208054]
[1754661043155,0.36630779,116890.0,116880.0,0.00208054]
[1754661043573,0.20082779,116890.0,116880.0,0.00417054]
[1754661043881,0.33802779,116890.0,116880.0,0.03182054]
[1754661044099,0.33802779,116890.0,116880.0,0.00417054]
[1754661044307,0.36106779,116890.0,116880.0,0.00417054]
[1754661044517,0.36303779,116890.0,116880.0,0.00417054]
[1754661045405,0.33802779,116890.0,116880.0,0.03182054]
[1754661045638,0.36303779,116890.0,116880.0,0.00417054]
[1754661046284,0.33802779,116890.0,116880.0,0.03182054]
[1754661047171,0.36106779,116890.0,116880.0,0.00417054]
[1754661047592,0.36066779,116890.0,116880.0,0.00417054]
[1754661048282,0.36263779,116890.0,116880.0,0.00417054]
[1754661048504,0.17778779,116890.0,116880.0,0.11868265]
[1754661048744,0.33762779,116890.0,116880.0,0.11868265]
[1754661049621,0.17778779,116890.0,116880.0,0.11868265]
[1754661049851,0.33746779,116890.0,116880.0,0.11868265]
[1754661050874,0.33746779,116890.0,116880.0,0.12082159]
[1754661051505,0.33746779,116890.0,116880.0,0.12072159]
[1754661053392,0.33746779,116890.0,116880.0,0.09311159]
[1754661053610,0.36289779,116890.0,116880.0,0.09311159]
[1754661053809,0.33746779,116890.0,116880.0,0.11636159]
[1754661053986,0.33746779,116890.0,116880.0,0.11937159]
[1754661054404,0.33746779,116890.0,116880.0,0.38320484]
[1754661054606,0.33746779,116890.0,116880.0,0.3810659]
[1754661055414,0.34348061,116890.0,116880.0,0.37271577]
[1754661055836,0.17778779,116890.0,116880.0,0.37271577]
[1754661056019,0.33662779,116890.0,116880.0,0.37271577]
[1754661056487,0.17778779,116890.0,116880.0,0.37271577]
[1754661056988,0.20321779,116890.0,116880.0,0.07705577]
[1754661057432,0.20617779,116890.0,116880.0,0.07705577]
[1754661058090,0.20321779,116890.0,116880.0,0.10276877]
[1754661059164,0.17778779,116890.0,116880.0,0.78083324]
[1754661059370,0.17778779,116890.0,116880.0,0.93947324]
[1754661060065,0.17778779,116890.0,116880.0,0.76835757]
[1754661060529,0.17678779,116890.0,116880.0,0.30014444]
[1754661060743,0.17678779,116890.0,116880.0,0.78083324]
[1754661060938,0.00795389,116890.0,116880.0,0.78083324]
[1754661061875,0.00795389,116890.0,116880.0,1.12083324]
[1754661062104,0.00795389,116890.0,116880.0,1.13828226]
[1754661062324,0.17960998,116920.0,116910.0,0.17107176]
[1754661062589,0.18761721,116920.0,116910.0,0.72806091]
[1754661062797,0.18761721,116920.0,116910.0,0.11515211]
[1754661063018,0.18761721,116920.0,116910.0,0.59584091]
[1754661063440,0.21600171,116920.0,116910.0,0.08686211]
[1754661063894,0.21089171,116920.0,116910.0,0.0910305]
[1754661064121,0.18761171,116920.0,116910.0,0.5979793]
[1754661064337,0.18761171,116920.0,116910.0,0.59584091]
[1754661064777,0.18761171,116920.0,116910.0,0.7752602]
[1754661064990,0.18761171,116920.0,116910.0,0.7762602]
[1754661065478,0.18761171,116920.0,116910.0,0.7752602]
[1754661065694,0.18761171,116920.0,116910.0,0.2945714]
[1754661065897,0.18761171,116920.0,116910.0,0.7772602]
[1754661066139,0.17905886,116920.0,116910.0,0.7772602]
[1754661066347,0.00800173,116920.0,116910.0,0.80295175]
[1754661066558,0.1796365,116930.0,116920.0,0.17105713]
[1754661066766,0.1796365,116930.0,116920.0,0.90097625]
[1754661066767,0.18762797,116930.0,116920.0,0.90097625]
[1754661066977,0.18762797,116930.0,116920.0,0.92509804]
[1754661067191,0.18762797,116930.0,116920.0,0.27335211]
[1754661067820,0.18810027,116930.0,116920.0,0.75404091]
[1754661068043,0.18810027,116930.0,116920.0,0.75504091]
[1754661068283,0.1801088,116930.0,116920.0,0.92709804]
[1754661068504,0.1801088,116930.0,116920.0,0.75604091]
[1754661069002,0.1801088,116930.0,116920.0,0.24809211]
[1754661069244,0.2033888,116930.0,116920.0,0.24709211]
[1754661069462,0.1801088,116930.0,116920.0,0.73278091]
[1754661069692,0.1801088,116930.0,116920.0,0.75603091]
[1754661069900,0.1801088,116930.0,116920.0,0.75904091]
[1754661070104,0.1801088,116930.0,116920.0,0.27835211]
[1754661070538,0.1801088,116930.0,116920.0,0.93009804]
[1754661070747,0.18006692,116930.0,116920.0,0.27835211]
[1754661070965,0.18006692,116930.0,116920.0,0.75904091]
[1754661071385,0.0004723,116930.0,116920.0,0.93009804]
[1754661071890,0.0004723,116930.0,116920.0,0.44940924]
[1754661072523,0.0004723,116930.0,116920.0,0.93009804]
[1754661072942,0.0004723,116930.0,116920.0,0.94754706]
[1754661073380,0.0004723,116930.0,116920.0,1.28754706]
[1754661074343,0.0004723,116930.0,116920.0,0.80685826]
[1754661074563,0.0004723,116930.0,116920.0,1.28754706]
[1754661075673,0.0004723,116930.0,116920.0,0.80685826]
[1754661075893,0.0004723,116930.0,116920.0,1.28754706]
[1754661076109,0.0004723,116930.0,116920.0,0.80685826]
[1754661076324,0.0004723,116930.0,116920.0,1.28754706]
[1754661078318,0.0004723,116930.0,116920.0,0.80685826]
[1754661078562,0.0004723,116930.0,116920.0,1.28754706]
[1754661079001,0.0004723,116930.0,116920.0,1.11648993]
[1754661079492,0.0004723,116930.0,116920.0,1.11448993]
[1754661080364,0.0004723,116930.0,116920.0,0.63080113]
[1754661080588,0.1715148,116930.0,116920.0,0.63080113]
[1754661080812,0.1715148,116930.0,116920.0,1.11648993]
[1754661081047,0.1715148,116930.0,116920.0,0.46015211]
[1754661081272,0.1715148,116930.0,116920.0,0.61859211]
[1754661081505,0.1969348,116930.0,116920.0,0.08889211]
[1754661081757,0.2000848,116930.0,116920.0,0.24749211]
[1754661081950,0.2000848,116930.0,116920.0,0.25149211]
[1754661082205,0.1969348,116930.0,116920.0,0.24749211]
[1754661082422,0.1715148,116930.0,116920.0,0.27001211]
[1754661082646,0.1715148,116930.0,116920.0,0.75363091]
[1754661083581,0.1715148,116930.0,116920.0,0.24749211]
[1754661083840,0.2000848,116930.0,116920.0,0.08686211]
[1754661084060,0.26956242,116930.0,116920.0,0.08686211]
[1754661084301,0.42804242,116930.0,116920.0,0.08686211]
[1754661084519,0.17105713,116920.0,116910.0,0.02569155]
[1754661084747,0.20817998,116920.0,116910.0,0.08686211]
[1754661085216,0.17110103,116890.0,116880.0,0.025713]
[1754661085441,0.17110103,116890.0,116880.0,0.184713]
[1754661085663,0.19967103,116890.0,116880.0,0.025713]
[1754661086584,0.19967103,116890.0,116880.0,0.02579395]
[1754661087053,0.35879103,116890.0,116880.0,8.095e-05]
[1754661088834,0.35879103,116890.0,116880.0,1e-08]
[1754661089288,0.35979103,116890.0,116880.0,1e-08]
[1754661089469,0.36777065,116890.0,116880.0,1e-08]
[1754661089954,0.36721065,116890.0,116880.0,1e-08]
[1754661090178,0.17111567,116880.0,116870.0,1e-08]
[1754661090395,0.20766246,116880.0,116870.0,8.102e-05]
[1754661090997,0.35948567,116880.0,116870.0,8.102e-05]
[1754661091469,0.19968567,116880.0,116870.0,8.102e-05]
[1754661091681,0.35944567,116880.0,116870.0,8.102e-05]
[1754661092136,0.36144567,116880.0,116870.0,8.102e-05]
[1754661092569,0.36140567,116880.0,116870.0,8.102e-05]
[1754661092791,0.36140567,116880.0,116870.0,1e-08]
[1754661093698,0.36140567,116880.0,116860.0,1e-08]
[1754661093699,0.17113031,116870.0,116860.0,1e-08]
[1754661093927,0.17114495,116860.0,116850.0,0.0004]
[1754661094146,0.17312495,116860.0,116850.0,0.08938211]
[1754661094357,0.17114495,116860.0,116850.0,0.1169716]
[1754661094586,0.17114495,116860.0,116850.0,0.0915216]
[1754661094804,0.19971495,116860.0,116850.0,0.08726211]
[1754661096534,0.19971495,116860.0,116840.0,0.21490001]
[1754661096535,0.1711596,116850.0,116840.0,0.21490001]
[1754661096751,0.3590896,116850.0,116840.0,0.21504215]
[1754661098752,0.1997296,116850.0,116840.0,0.21504215]
[1754661099622,0.1997296,116850.0,116840.0,0.00054214]
[1754661099832,0.1965796,116850.0,116840.0,0.00266214]
[1754661100258,0.1711596,116850.0,116840.0,0.00266214]
[1754661100476,0.3558996,116850.0,116840.0,0.00054214]
[1754661100703,0.3590496,116850.0,116840.0,0.00054214]
[1754661101200,0.1711596,116850.0,116840.0,0.00054214]
[1754661101434,0.35438495,116860.0,116840.0,0.11497425]
[1754661101684,0.18324,116860.0,116850.0,0.17329909]
[1754661101915,0.18372,116880.0,116870.0,0.17113031]
[1754661102161,0.20309608,116890.0,116880.0,0.17111567]
[1754661102397,0.19653567,116880.0,116870.0,0.08686211]
[1754661102824,0.19968567,116880.0,116870.0,0.08686211]
[1754661103443,0.19968567,116880.0,116870.0,0.25799242]
[1754661103692,0.19653567,116880.0,116870.0,0.26011242]
[1754661104604,0.19968567,116880.0,116870.0,0.08686211]
[1754661105447,0.19968567,116880.0,116860.0,0.17114495]
[1754661105448,0.17113031,116870.0,116860.0,0.17114495]
[1754661105661,0.33335031,116870.0,116860.0,0.00212]
[1754661105952,0.17114495,116860.0,116850.0,0.1966096]
[1754661106161,0.1711596,116850.0,116840.0,0.0004]
[1754661106345,0.3568196,116850.0,116840.0,0.2606985]
[1754661106802,0.16024,116850.0,116840.0,0.2861485]
[1754661107051,0.3313996,116850.0,116840.0,0.2861485]
[1754661107261,0.3313996,116850.0,116840.0,0.2606985]
[1754661107486,0.16024,116850.0,116840.0,0.2861485]
[1754661107914,0.20312682,116870.0,116840.0,0.2861485]
[1754661108145,0.16036,116860.0,116850.0,0.2856112]
[1754661108365,0.33150495,116860.0,116850.0,0.28559171]
[1754661108590,0.16036,116860.0,116850.0,0.28559171]
[1754661108820,0.33150495,116860.0,116850.0,0.28559171]
[1754661109482,0.33150495,116860.0,116850.0,0.28659171]
[1754661109948,0.16036,116860.0,116850.0,0.28659171]
[1754661110162,0.16,116860.0,116850.0,0.28659171]
[1754661110377,0.16,116860.0,116850.0,0.28759171]
[1754661110814,0.33114495,116860.0,116850.0,0.26214171]
[1754661111030,0.16,116860.0,116850.0,0.28996171]
[1754661111888,0.20692145,116880.0,116860.0,0.17114495]
[1754661111889,0.20369652,116880.0,116860.0,0.17114495]
[1754661112106,0.20367608,116890.0,116880.0,0.17111567]
[1754661112315,0.37357414,116890.0,116880.0,0.00196]
[1754661112520,0.17111567,116880.0,116870.0,0.25799242]
[1754661112734,0.18117373,116880.0,116870.0,0.25995242]
[1754661112954,0.36810373,116880.0,116870.0,0.25799242]
[1754661113175,0.36810373,116880.0,116870.0,0.08686211]
[1754661113398,0.03407806,116880.0,116870.0,0.25799242]
[1754661113614,0.03407806,116880.0,116870.0,0.28478242]
[1754661113615,0.16769806,116880.0,116870.0,0.28478242]
[1754661113829,0.16769806,116880.0,116870.0,0.28777242]
[1754661114045,0.00797806,116880.0,116870.0,0.28777242]
[1754661114227,0.33885373,116880.0,116870.0,0.28777242]
[1754661114472,0.33885373,116880.0,116870.0,0.26095242]
[1754661114889,0.34093373,116880.0,116870.0,0.26095242]
[1754661115412,0.36495373,116880.0,116870.0,0.26095242]
[1754661115813,0.36818373,116880.0,116870.0,0.25899242]
[1754661116674,0.19331806,116880.0,116870.0,0.26095242]
[1754661116893,0.36443373,116880.0,116870.0,0.26095242]
[1754661117424,0.36766373,116880.0,116870.0,0.25899242]
[1754661117666,0.36766373,116880.0,116870.0,0.25999242]
[1754661117877,0.36766373,116880.0,116870.0,0.08886211]
[1754661118093,0.36766373,116880.0,116870.0,0.002]
[1754661119220,0.36766373,116880.0,116870.0,0.17313031]
[1754661119430,0.36768831,116880.0,116870.0,0.17313031]
[1754661119643,0.33823831,116880.0,116870.0,0.17509031]
[1754661119856,0.36433831,116880.0,116870.0,0.17509031]
[1754661120501,0.19322264,116880.0,116870.0,0.17509031]
[1754661120715,0.36433831,116880.0,116870.0,0.17509031]
[1754661120931,0.03410264,116880.0,116870.0,0.17509031]
[1754661121120,0.36425831,116880.0,116870.0,0.17509031]
[1754661121372,0.19314264,116880.0,116870.0,0.17509031]
[1754661122067,0.36425831,116880.0,116870.0,0.17509031]
[1754661122596,0.19314264,116880.0,116870.0,0.17509031]
[1754661122821,0.19314264,116880.0,116870.0,0.26195242]
[1754661122822,0.19322264,116880.0,116870.0,0.26195242]
[1754661123033,0.16712264,116880.0,116870.0,0.77046122]
[1754661123259,0.16712264,116880.0,116870.0,0.28977242]
[1754661124154,0.00800264,116880.0,116870.0,0.77046122]
[1754661125136,0.15884,116890.0,116880.0,0.17111567]
[1754661125380,0.00799824,116890.0,116880.0,0.74276552]
[1754661125616,0.00799824,116890.0,116880.0,1.19660658]
[1754661125825,0.15864,116910.0,116900.0,0.17108639]
[1754661126043,0.32961713,116920.0,116910.0,0.17105885]
[1754661126257,0.33761225,116920.0,116910.0,0.25792096]
[1754661126473,0.19057512,116920.0,116910.0,0.25988096]
[1754661126688,0.19265512,116920.0,116910.0,0.25988096]
[1754661126918,0.19265512,116920.0,116910.0,0.76838976]
[1754661126919,0.00799512,116920.0,116910.0,0.76838976]
[1754661127148,0.00799512,116920.0,116910.0,1.26698976]
[1754661127420,1.0004724,116930.0,116920.0,0.17105713]
[1754661127680,1.0084564,116930.0,116920.0,0.77052625]
[1754661127917,1.0084564,116930.0,116920.0,0.79445204]
[1754661127918,1.0004724,116930.0,116920.0,0.79445204]
[1754661128603,1.0004724,116930.0,116920.0,0.80300226]
[1754661128834,1.0004724,116930.0,116920.0,1.14300226]
[1754661129551,1.0004724,116930.0,116920.0,1.16800226]
[1754661129793,1.0034724,116930.0,116920.0,0.68731346]
[1754661130022,1.0004724,116930.0,116920.0,1.16800226]
[1754661130427,1.0004724,116930.0,116920.0,1.17000226]
[1754661130876,1.0004724,116930.0,116920.0,1.17200226]
[1754661131342,1.0004724,116930.0,116920.0,1.17000226]
[1754661132054,1.0014724,116930.0,116920.0,1.21545128]
[1754661133487,1.0014724,116930.0,116920.0,0.73476248]
[1754661133737,0.60514689,116930.0,116920.0,1.21545128]
[1754661133968,0.58761716,116930.0,116920.0,1.21545128]
[1754661134177,0.53126767,116930.0,116920.0,1.21545128]
[1754661134666,0.52271036,116930.0,116920.0,1.21545128]
[1754661134852,0.49175977,116930.0,116920.0,1.21245128]
[1754661135120,0.48320246,116930.0,116920.0,1.21245128]
[1754661135320,0.47564515,116930.0,116920.0,1.21545128]
[1754661135767,0.46708784,116930.0,116920.0,1.21545128]
[1754661136207,0.45853053,116930.0,116920.0,1.21345128]
[1754661136691,0.44997322,116930.0,116920.0,1.21445128]
[1754661136914,0.44141591,116930.0,116920.0,1.21445128]
[1754661137327,0.4328586,116930.0,116920.0,1.21445128]
[1754661137767,0.42430129,116930.0,116920.0,1.21445128]
[1754661137984,0.42430129,116930.0,116920.0,1.37281128]
[1754661138201,0.41574398,116930.0,116920.0,1.37281128]
[1754661138639,0.40718667,116930.0,116920.0,1.37281128]
[1754661139039,0.39862936,116930.0,116920.0,1.37281128]
[1754661139250,0.39007205,116930.0,116920.0,1.37281128]
[1754661139689,0.38151474,116930.0,116920.0,0.89192248]
[1754661139909,0.38151474,116930.0,116920.0,1.37261128]
[1754661140130,0.37295743,116930.0,116920.0,0.91761248]
[1754661140354,0.37295743,116930.0,116920.0,1.39830128]
[1754661141459,0.37295743,116930.0,116920.0,1.24014128]
[1754661141672,0.37295743,116930.0,116920.0,1.39778128]
[1754661142121,0.37195743,116930.0,116920.0,1.39478128]
[1754661143025,0.36340006,116930.0,116920.0,1.60018128]
[1754661143424,0.35484269,116930.0,116920.0,1.60118128]
[1754661143913,0.34628532,116930.0,116920.0,1.60118128]
[1754661144086,0.34628532,116930.0,116920.0,1.44354128]
[1754661144310,0.33772795,116930.0,116920.0,1.59958128]
[1754661144518,0.33772795,116930.0,116920.0,1.11989248]
[1754661144730,0.33772795,116930.0,116920.0,1.60358128]
[1754661144953,0.33772795,116930.0,116920.0,1.12289248]
[1754661145377,0.33772795,116930.0,116920.0,1.60058128]
[1754661146029,0.33772795,116930.0,116920.0,1.86998128]
[1754661146514,0.33772795,116930.0,116920.0,1.86898128]
[1754661146746,0.33772795,116930.0,116920.0,1.87098128]
[1754661146975,0.33772795,116930.0,116920.0,1.84316128]
[1754661147239,0.33772795,116930.0,116920.0,1.36247248]
[1754661147482,0.33772795,116930.0,116920.0,1.84316128]
[1754661147729,0.33772795,116930.0,116920.0,1.36247248]
[1754661148198,0.33772795,116930.0,116920.0,1.86645128]
[1754661148439,0.33772795,116930.0,116920.0,1.84316128]